bitfinex-derivatives/quotes_SOLF0:USTF0_20250816
["timestamp","ask_amount","ask_price","bid_price","bid_amount"]
[1755341442243,6.85432293,186.5,186.47,3.13]
[1755341442544,2.93,186.51,186.47,3.13]
[1755341442737,2.93,186.57,186.49,3.13]
[1755341442942,2.93,186.55,186.49,3.13]
[1755341443239,6.85385762,186.54,186.49,3.13]
[1755341443542,2.93,186.58,186.5,0.03824823]
[1755341443742,3.92504499,186.57,186.51,6.03657291]
[1755341444045,6.85504499,186.56,186.52,3.13]
[1755341444241,2.93,186.56,186.52,3.13]
[1755341444743,2.93,186.59,186.52,3.13]
[1755341444943,3.92282954,186.58,186.52,3.13]
[1755341445242,3.92282954,186.57,186.52,3.13]
[1755341445438,3.92282954,186.56,186.52,3.13]
[1755341445636,2.93,186.59,186.52,3.13]
[1755341445845,3.92146406,186.58,186.53,0.03558941]
[1755341446046,6.85146406,186.57,186.54,3.13]
[1755341446242,2.93,186.57,186.54,3.13]
[1755341446545,3.92088171,186.56,186.53,3.16558941]
[1755341446743,2.93,186.55,186.54,3.13]
[1755341447845,2.93,186.55,186.53,0.03558941]
[1755341448041,2.93,186.6,186.53,0.03558941]
[1755341448238,2.93,186.58,186.53,0.03558941]
[1755341448440,3.91976468,186.59,186.53,0.03558941]
[1755341448441,2.93,186.56,186.53,0.03558941]
[1755341448646,3.08,186.54,186.53,0.03558941]
[1755341450544,6.99725084,186.54,186.48,3.0]
[1755341450851,3.08,186.52,186.46,3.0]
[1755341451048,3.08,186.5,186.44,3.0]
[1755341451244,3.08,186.5,186.39,5.3613]
[1755341451449,3.91563369,186.49,186.41,3.0]
[1755341451651,3.91563369,186.48,186.41,3.0]
[1755341451951,3.11550424,186.47,186.41,3.0]
[1755341453848,3.11550424,186.47,186.43,3.0]
[1755341454243,3.08,186.47,186.43,3.0]
[1755341454643,3.11795274,186.47,186.43,3.0]
[1755341454848,0.03795274,186.47,186.43,3.0]
[1755341455045,0.03795274,186.47,186.45,2.90657291]
[1755341455248,0.03795274,186.47,186.46,3.0]
[1755341455447,3.08,186.5,186.46,3.0]
[1755341455642,3.08,186.49,186.46,3.0]
[1755341455850,0.04045762,186.48,186.46,3.0]
[1755341457649,3.08,186.54,186.47,3.0]
[1755341457953,3.08,186.53,186.49,3.0]
[1755341458344,3.08,186.54,186.48,5.90657291]
[1755341458546,3.08,186.52,186.48,3.0]
[1755341458753,3.08,186.52,186.49,0.035798]
[1755341459842,3.08,186.52,186.49,3.035798]
[1755341460244,3.08,186.5,186.49,0.035798]
[1755341460856,6.99987411,186.5,186.49,0.035798]
[1755341461157,3.91987411,186.5,186.39,4.56731157]
[1755341461349,3.08,186.48,186.42,3.0]
[1755341461554,3.08,186.46,186.4,3.0]
[1755341462453,0.03571181,186.45,186.4,3.0]
[1755341463454,0.03571181,186.45,186.42,3.0]
[1755341464055,0.03571181,186.45,186.42,8.3605]
[1755341464254,0.03571181,186.45,186.43,3.0]
[1755341468963,3.08,186.54,186.44,5.3597]
[1755341469162,3.08,186.52,186.45,3.0]
[1755341470163,3.08,186.52,186.47,0.03854342]
[1755341470354,3.08,186.52,186.49,3.0]
[1755341471469,232.07316126,186.55,186.49,3.0]
[1755341471764,3.08,186.53,186.48,3.0]
[1755341471965,3.9303054,186.52,186.48,3.0]
[1755341472263,3.9303054,186.51,186.48,3.0]
[1755341472462,3.08,186.49,186.48,3.0]
[1755341472964,236.54048751,186.55,186.47,0.03854342]
[1755341473161,3.08,186.53,186.47,0.03854342]
[1755341473363,3.08,186.51,186.47,3.03854342]
[1755341475667,3.08,186.54,186.48,3.0]
[1755341475860,3.92987057,186.53,186.48,3.0]
[1755341476062,3.08,186.52,186.48,3.0]
[1755341477569,3.08,186.54,186.48,3.0]
[1755341478366,3.08,186.54,186.49,3.0]
[1755341478663,100.09316126,186.55,186.49,3.0]
[1755341478860,2.84,186.59,186.49,3.0]
[1755341479059,2.84,186.57,186.49,3.0]
[1755341479261,2.84,186.55,186.49,3.0]
[1755341479462,2.84,186.53,186.47,2.85]
[1755341479661,2.84,186.53,186.51,0.04003108]
[1755341480163,2.84,186.51,186.45,2.85]
[1755341481470,0.03834156,186.5,186.45,2.85]
[1755341481775,2.84,186.49,186.45,2.85]
[1755341482266,2.84,186.48,186.45,2.85]
[1755341483063,0.03834156,186.5,186.45,2.85]
[1755341483372,0.03834156,186.5,186.49,5.74799364]
[1755341491577,2.84,186.54,186.5,2.85]
[1755341492077,2.84,186.59,186.5,2.85]
[1755341492271,2.84,186.57,186.5,2.85]
[1755341492466,2.84,186.55,186.49,2.89799364]
[1755341492673,2.84,186.55,186.5,2.85]
[1755341492871,2.84,186.55,186.51,2.85]
[1755341493073,2.84,186.55,186.52,2.85]
[1755341493876,2.84,186.58,186.51,2.85]
[1755341494078,2.84,186.56,186.51,2.85]
[1755341494278,3.92663387,186.55,186.51,2.85]
[1755341494477,2.84,186.59,186.51,2.85]
[1755341494674,2.84,186.57,186.51,2.85]
[1755341494875,2.84,186.55,186.5,2.85]
[1755341495078,2.84,186.55,186.53,0.03851986]
[1755341495475,2.84,186.59,186.53,2.88851986]
[1755341495777,2.84,186.57,186.53,2.88851986]
[1755341495978,6.76605301,186.56,186.53,2.88851986]
[1755341496169,2.84,186.6,186.54,2.85]
[1755341496368,3.92593391,186.59,186.54,2.85]
[1755341496573,6.76593391,186.58,186.55,2.89799364]
[1755341496773,2.84,186.58,186.56,2.85]
[1755341496974,136.44732625,186.63,186.56,2.85]
[1755341497170,2.84,186.59,186.56,2.85]
[1755341497375,6.77029406,186.58,186.56,2.85]
[1755341497572,2.84,186.58,186.56,2.85]
[1755341497768,4.46732625,186.63,186.56,2.85]
[1755341497969,6.76994833,186.62,186.6,2.85]
[1755341498173,2.84,186.63,186.62,2.85]
[1755341498969,2.84,186.63,186.61,2.93440772]
[1755341498970,2.84,186.67,186.63,2.85]
[1755341499376,2.84,186.67,186.64,2.85]
[1755341500672,2.84,186.66,186.65,2.85]
[1755341501881,2.84,186.7,186.65,2.85]
[1755341502081,2.84,186.7,186.66,2.85]
[1755341502883,2.84,186.7,186.65,2.85]
[1755341503483,2.84,186.7,186.66,2.89799364]
[1755341503783,2.84,186.69,186.68,2.85]
[1755341504282,2.84,186.69,186.66,5.74799364]
[1755341504583,2.84,186.68,186.67,2.88937303]
[1755341504779,2.84,186.73,186.67,2.88937303]
[1755341507483,2.84,186.73,186.67,0.03937303]
[1755341507686,2.84,186.69,186.67,0.03937303]
[1755341508181,134.9,186.69,186.59,2.85]
[1755341508486,2.84,186.68,186.59,2.85]
[1755341509382,0.03657764,186.65,186.59,2.85]
[1755341509575,2.93,186.64,186.59,2.85]
[1755341509779,2.93,186.64,186.56,2.89799364]
[1755341509982,2.93,186.64,186.6,2.88]
[1755341510179,2.93,186.64,186.61,2.88]
[1755341510381,2.96657764,186.65,186.59,2.89799364]
[1755341510581,0.03657764,186.65,186.6,2.88]
[1755341510781,2.93,186.63,186.6,2.88]
[1755341510976,2.93,186.62,186.61,2.88]
[1755341511689,2.93,186.61,186.6,2.88]
[1755341511989,2.9706878,186.64,186.6,2.88]
[1755341512183,2.93,186.64,186.6,2.88]
[1755341512384,0.0391806,186.64,186.6,2.88]
[1755341512584,2.93,186.63,186.6,2.88]
[1755341512784,2.93,186.62,186.6,2.88]
[1755341512985,2.93,186.62,186.59,2.89799364]
[1755341513188,2.93,186.62,186.61,2.88]
[1755341516189,2.9691806,186.64,186.61,2.88]
[1755341516488,0.0391806,186.64,186.61,2.88]
[1755341517191,0.0391806,186.64,186.63,2.89799364]
[1755341517391,0.0391806,186.64,186.63,5.77799364]
[1755341520498,2.9691806,186.64,186.63,5.77799364]
[1755341520700,2.9691806,186.64,186.63,2.89799364]
[1755341520895,0.0391806,186.64,186.63,5.77799364]
[1755341521296,2.9691806,186.64,186.63,5.77799364]
[1755341521491,2.9691806,186.64,186.56,46.89799364]
[1755341521492,2.9691806,186.64,186.56,2.89799364]
[1755341521697,2.9691806,186.64,186.57,2.88]
[1755341531410,2.9691806,186.64,186.55,2.88]
[1755341531411,3.89488563,186.63,186.55,2.88]
[1755341531708,2.93,186.61,186.55,2.88]
[1755341531909,2.93,186.59,186.54,2.88]
[1755341532300,2.93,186.59,186.55,2.88]
[1755341532504,0.04126255,186.58,186.51,2.89799364]
[1755341532713,2.97126255,186.58,186.52,2.88]
[1755341534411,0.04126255,186.58,186.55,2.88]
[1755341534614,0.04126255,186.58,186.45,46.89799364]
[1755341534615,0.04126255,186.58,186.57,5.77799364]
[1755341534808,2.93,186.61,186.57,5.77799364]
[1755341535012,2.93,186.6,186.57,2.89799364]
[1755341535203,0.03952143,186.59,186.58,2.88]
[1755341535516,2.96952143,186.59,186.58,2.88]
[1755341535710,2.96952143,186.59,186.56,2.88]
[1755341536615,2.96952143,186.59,186.55,2.88]
[1755341536812,2.96952143,186.59,186.56,2.88]
[1755341537014,2.96952143,186.59,186.53,2.89799364]
[1755341537215,2.96952143,186.59,186.54,2.88]
[1755341537515,2.96952143,186.59,186.55,2.88]
[1755341537713,2.96952143,186.59,186.56,2.88]
[1755341538315,2.96952143,186.59,186.54,2.88]
[1755341538814,0.03952143,186.59,186.56,2.89799364]
[1755341539015,3.09952143,186.59,186.56,2.89799364]
[1755341539214,3.06,186.6,186.58,2.9]
[1755341539408,3.06,186.61,186.58,2.9]
[1755341539606,0.03708496,186.59,186.58,2.9]
[1755341540912,3.09708496,186.59,186.58,2.9]
[1755341541116,3.09708496,186.59,186.53,2.89799364]
[1755341541305,3.09708496,186.59,186.55,2.9]
[1755341541508,3.06,186.59,186.55,2.9]
[1755341541906,3.09805544,186.59,186.55,2.9]
[1755341542616,0.03805544,186.59,186.54,2.9]
[1755341542815,0.03805544,186.59,186.58,2.9]
[1755341542816,3.09805544,186.59,186.58,2.9]
[1755341543115,3.06,186.59,186.58,2.9]
[1755341544020,3.10039608,186.6,186.54,2.9]
[1755341544518,3.06,186.6,186.54,2.9]
[1755341544716,0.03580814,186.59,186.54,2.9]
[1755341544917,3.09580814,186.59,186.54,2.9]
[1755341545820,0.03580814,186.59,186.54,2.9]
[1755341546119,3.06,186.58,186.54,2.9]
[1755341546322,3.06,186.57,186.54,2.9]
[1755341546520,0.03580814,186.59,186.53,2.89799364]
[1755341546721,3.06,186.58,186.53,2.89799364]
[1755341546915,3.06,186.58,186.55,2.9]
[1755341547717,3.06,186.58,186.54,2.9]
[1755341548314,3.06,186.58,186.55,2.9]
[1755341548521,3.06,186.58,186.52,2.9]
[1755341552223,3.06,186.56,186.52,2.9]
[1755341552421,3.06,186.58,186.52,2.9]
[1755341552723,3.06,186.56,186.53,2.9]
[1755341554424,3.06,186.56,186.54,2.9]
[1755341555116,3.06,186.55,186.54,2.9]
[1755341555621,3.06,186.58,186.48,2.9]
[1755341555823,3.06,186.56,186.48,2.9]
[1755341556021,3.06,186.54,186.48,2.9]
[1755341556526,3.09987847,186.54,186.48,2.9]
[1755341558927,3.09987847,186.54,186.45,2.9]
[1755341559331,3.06,186.54,186.45,2.9]
[1755341559729,0.03812563,186.51,186.45,2.9]
[1755341559932,3.06,186.5,186.45,2.9]
[1755341560327,3.06,186.49,186.45,2.9]
[1755341562933,0.03812563,186.51,186.48,2.9]
[1755341563134,0.03812563,186.51,186.5,2.89799364]
[1755341563331,0.03812563,186.51,186.5,5.79799364]
[1755341568937,3.03812563,186.51,186.5,5.79799364]
[1755341569138,0.03812563,186.51,186.5,5.79799364]
[1755341569942,3.03812563,186.51,186.5,5.79799364]
[1755341571349,3.03812563,186.51,186.48,3.05]
[1755341571544,3.0,186.5,186.49,3.05]
[1755341572245,0.03812563,186.51,186.48,3.05]
[1755341572447,3.0,186.5,186.48,3.05]
[1755341572652,3.0,186.5,186.49,3.05]
[1755341578253,0.03812563,186.51,186.49,3.05]
[1755341578953,0.03812563,186.51,186.5,3.05]
[1755341579150,3.03812563,186.51,186.5,3.05]
[1755341579455,3.03812563,186.51,186.49,3.05]
[1755341580349,3.03812563,186.51,186.48,3.05]
[1755341581151,3.03812563,186.51,186.44,2.89799364]
[1755341581460,3.03812563,186.51,186.49,3.05]
[1755341582145,3.03812563,186.51,186.45,3.05]
[1755341582348,0.03812563,186.51,186.47,2.89799364]
[1755341582548,0.03812563,186.51,186.48,3.05]
[1755341583355,3.03812563,186.51,186.48,3.05]
[1755341584158,3.0,186.5,186.48,3.05]
[1755341584348,0.03812563,186.51,186.48,3.05]
[1755341584554,3.0,186.5,186.48,3.05]
[1755341584758,0.03812563,186.51,186.48,3.05]
[1755341584957,3.0,186.49,186.48,3.05]
[1755341585660,3.03812563,186.51,186.48,3.05]
[1755341585860,3.0,186.5,186.48,3.05]
[1755341587261,3.0,186.5,186.49,3.05]
[1755341591561,3.0,186.5,186.45,3.05]
[1755341593866,4.07257217,186.49,186.43,3.05]
[1755341594066,4.0723926,186.48,186.43,3.05]
[1755341594267,3.0,186.47,186.43,3.05]
[1755341595065,3.0,186.46,186.43,3.05]
[1755341595270,0.03603157,186.47,186.46,3.05]
[1755341595671,3.0,186.51,186.46,3.05]
[1755341595873,4.07528761,186.5,186.49,3.05]
[1755341596560,3.0,186.51,186.48,2.89799364]
[1755341596762,3.0,186.51,186.49,3.05]
[1755341596971,3.0,186.5,186.48,2.9335697]
[1755341597462,3.0,186.5,186.49,3.05]
[1755341597868,4.07595946,186.5,186.48,0.03557606]
[1755341598070,3.0,186.49,186.48,3.08557606]
[1755341599468,3.12,186.53,186.48,0.03557606]
[1755341599667,3.12,186.51,186.48,3.07557606]
[1755341599872,3.12,186.49,186.48,3.07557606]
[1755341606473,7.19670115,186.49,186.48,3.07557606]
[1755341609179,7.19670115,186.49,186.48,0.03557606]
[1755341610278,7.19670115,186.49,186.48,3.07557606]
[1755341612081,4.07670115,186.49,186.48,3.07557606]
[1755341612284,3.12,186.53,186.48,3.07557606]
[1755341612481,4.11596513,186.52,186.48,3.07557606]
[1755341612687,7.23596513,186.51,186.48,3.07557606]
[1755341612876,4.11596513,186.5,186.48,3.07557606]
[1755341613180,3.12,186.51,186.48,3.07557606]
[1755341613383,4.11344695,186.5,186.48,3.07557606]
[1755341613585,3.12,186.51,186.48,3.07557606]
[1755341613779,4.11344537,186.5,186.48,3.07557606]
[1755341613981,7.23309872,186.49,186.48,0.03557606]
[1755341614375,4.11309872,186.49,186.46,3.04]
[1755341614585,3.12,186.47,186.46,3.04]
[1755341615977,3.12,186.51,186.46,3.04]
[1755341616181,3.12,186.49,186.46,3.04]
[1755341616381,4.11425961,186.48,186.46,3.04]
[1755341616587,3.12,186.48,186.46,3.04]
[1755341617183,3.12,186.52,186.46,3.04]
[1755341617385,4.49271776,186.54,186.46,3.04]
[1755341617386,7.24594146,186.51,186.46,3.04]
[1755341617678,4.12594146,186.5,186.46,3.04]
[1755341617884,3.12,186.51,186.47,0.03650806]
[1755341618079,4.12537181,186.5,186.47,0.03650806]
[1755341618384,4.49271776,186.54,186.48,3.04]
[1755341618590,3.12,186.52,186.48,3.04]
[1755341618789,4.12559485,186.51,186.48,3.04]
[1755341619090,3.12,186.54,186.5,2.89799364]
[1755341619290,4.12612987,186.53,186.51,3.04]
[1755341619485,4.12612987,186.52,186.51,3.04]
[1755341619686,7.61271776,186.56,186.51,3.04]
[1755341619687,3.12,186.56,186.51,3.04]
[1755341619993,4.12678179,186.55,186.51,3.04]
[1755341620187,7.61271776,186.59,186.52,0.03470277]
[1755341620385,3.12,186.57,186.53,3.04]
[1755341620584,4.12513199,186.56,186.53,3.04]
[1755341620788,4.12513199,186.55,186.53,3.04]
[1755341620987,3.12,186.56,186.53,3.04]
[1755341621293,4.12579651,186.55,186.53,3.04]
[1755341621483,3.12,186.56,186.53,3.04]
[1755341621683,4.1241132,186.55,186.53,3.04]
[1755341621886,4.49271776,186.6,186.53,3.04]
[1755341622086,4.12326968,186.59,186.53,2.89799364]
[1755341622292,3.12,186.57,186.54,3.04]
[1755341622492,7.24326968,186.56,186.55,3.04]
[1755341623687,4.12326968,186.56,186.55,3.04]
[1755341623890,4.49271776,186.61,186.55,3.04]
[1755341624090,7.24115105,186.6,186.55,3.04]
[1755341624393,4.12115105,186.59,186.55,3.04]
[1755341624694,4.12115105,186.58,186.57,3.04]
[1755341625591,3.12,186.57,186.56,0.03638931]
[1755341625792,7.24115105,186.57,186.56,0.03638931]
[1755341633495,7.24115105,186.57,186.56,3.15638931]
[1755341634906,7.24115105,186.57,186.56,0.03638931]
[1755341636707,7.24115105,186.57,186.56,3.15638931]
[1755341636906,4.12115105,186.57,186.56,0.03638931]
[1755341637208,7.12115105,186.57,186.56,3.15638931]
[1755341639399,7.12115105,186.57,186.56,0.03638931]
[1755341642509,4.12115105,186.57,186.56,0.03638931]
[1755341642714,7.12115105,186.57,186.56,3.15638931]
[1755341643417,3.0,186.59,186.56,3.15638931]
[1755341643614,4.11035126,186.58,186.56,3.15638931]
[1755341643818,3.0,186.59,186.56,3.15638931]
[1755341644019,4.11001141,186.58,186.56,3.15638931]
[1755341644321,3.0,186.58,186.56,3.15638931]
[1755341646323,3.0,186.57,186.56,0.03638931]
[1755341646716,3.0,186.57,186.56,3.15638931]
[1755341650625,3.0,186.57,186.56,0.03638931]
[1755341650821,7.10655391,186.57,186.56,0.03638931]
[1755341657121,7.10655391,186.57,186.41,175.88]
[1755341657122,11.59927167,186.57,186.51,3.12]
[1755341657321,7.3907114,186.53,186.46,3.12]
[1755341657528,3.0,186.51,186.46,3.12]
[1755341657720,3.0,186.49,186.46,3.12]
[1755341657920,138.88655391,186.48,186.46,3.12]
[1755341658125,3.0,186.47,186.4,2.89799364]
[1755341658626,3.0,186.47,186.41,2.87]
[1755341659829,3.12,186.47,186.41,2.87]
[1755341660130,3.12,186.44,186.41,2.87]
[1755341660524,3.12,186.43,186.41,2.87]
[1755341660824,4.10762145,186.42,186.38,2.87]
[1755341661024,3.12,186.43,186.38,2.87]
[1755341661330,3.12,186.41,186.39,2.87]
[1755341661726,3.12,186.41,186.37,2.87]
[1755341661932,4.1034837,186.4,186.37,2.87]
[1755341662129,3.12,186.39,186.37,2.87]
[1755341663024,0.0389286,186.4,186.31,2.89799364]
[1755341663231,3.12,186.38,186.31,2.89799364]
[1755341663432,3.12,186.38,186.31,8.26149364]
[1755341663631,3.1589286,186.4,186.32,2.87]
[1755341664029,3.1589286,186.4,186.32,5.3633]
[1755341664332,3.1589286,186.4,186.33,2.87]
[1755341678837,0.0389286,186.4,186.35,2.87]
[1755341679043,0.0389286,186.4,186.38,2.87]
[1755341684346,3.1589286,186.4,186.38,2.87]
[1755341684749,3.12,186.39,186.38,2.87]
[1755341685043,0.0389286,186.4,186.38,2.87]
[1755341685941,0.0389286,186.4,186.38,8.2315]
[1755341686146,0.0389286,186.4,186.39,2.87]
[1755341686937,0.0389286,186.4,186.39,5.3614]
[1755341687141,0.0389286,186.4,186.39,8.2314]
[1755341687341,0.0389286,186.4,186.39,2.87]
[1755341690745,3.1089286,186.4,186.39,2.87]
[1755341690947,3.1089286,186.4,186.35,2.85]
[1755341691348,3.1089286,186.4,186.34,2.89799364]
[1755341691349,3.1089286,186.4,186.34,8.26059364]
[1755341691546,3.07,186.39,186.35,2.85]
[1755341691751,3.07,186.39,186.31,2.89799364]
[1755341691752,3.07,186.39,186.33,2.85]
[1755341694555,0.0389286,186.4,186.26,175.78]
[1755341694556,0.0389286,186.4,186.35,2.85]
[1755341694953,3.07,186.41,186.35,2.85]
[1755341695158,3.07,186.41,186.36,2.85]
[1755341695357,0.0358664,186.39,186.36,2.85]
[1755341696056,3.1058664,186.39,186.36,2.85]
[1755341696458,0.0358664,186.39,186.36,2.85]
[1755341696859,3.1058664,186.39,186.36,2.85]
[1755341697455,3.1058664,186.39,186.37,2.85]
[1755341699453,0.0358664,186.39,186.37,2.85]
[1755341699657,3.1058664,186.39,186.37,2.85]
[1755341701362,4.11699453,186.38,186.37,2.85]
[1755341703261,0.0358664,186.39,186.37,2.85]
[1755341703461,0.0358664,186.39,186.38,5.74799364]
[1755341703966,3.07,186.4,186.38,2.89799364]
[1755341704166,3.10949744,186.4,186.39,2.85]
[1755341705264,0.03949744,186.4,186.39,2.85]
[1755341705663,4.49271776,186.45,186.39,2.85]
[1755341705866,4.49271776,186.45,186.38,2.93552086]
[1755341705867,3.07,186.47,186.43,2.85]
[1755341706061,3.07,186.47,186.45,2.89799364]
[1755341706259,3.07,186.47,186.46,2.85]
[1755341706467,4.49271776,186.5,186.45,2.89799364]
[1755341706668,3.07,186.46,186.45,5.74799364]
[1755341712080,3.07,186.46,186.45,2.85]
[1755341715383,4.49271776,186.52,186.45,2.85]
[1755341715588,3.07,186.5,186.45,2.85]
[1755341715783,3.07,186.48,186.45,2.85]
[1755341715987,4.49271776,186.51,186.45,2.85]
[1755341715988,3.07,186.46,186.45,2.85]
[1755341716584,5.96799364,186.5,186.44,0.03616855]
[1755341716789,3.07,186.45,186.44,0.03616855]
[1755341717191,4.01816947,186.45,186.44,0.03616855]
[1755341717387,3.07,186.47,186.44,0.03616855]
[1755341717583,4.01816947,186.46,186.44,0.03616855]
[1755341717789,7.08816947,186.45,186.44,0.03616855]
[1755341720594,2.89799364,186.5,186.44,3.17616855]
[1755341720595,4.49271776,186.5,186.44,3.17616855]
[1755341720798,3.06,186.48,186.45,3.14]
[1755341720996,3.06,186.46,186.45,3.14]
[1755341721289,3.06,186.46,186.44,0.03616855]
[1755341721290,3.06,186.45,186.44,0.03616855]
[1755341721491,7.07894432,186.45,186.44,3.17616855]
[1755341727296,4.01894432,186.45,186.44,3.17616855]
[1755341727800,7.07894432,186.45,186.44,3.17616855]
[1755341733504,7.07894432,186.45,186.44,0.03616855]
[1755341735405,7.07894432,186.45,186.44,3.17616855]
[1755341740506,4.01894432,186.45,186.44,3.17616855]
[1755341743301,7.07894432,186.45,186.44,3.17616855]
[1755341748206,4.01894432,186.45,186.44,3.17616855]
[1755341748914,6.96894432,186.45,186.44,3.17616855]
[1755341750511,6.96894432,186.45,186.44,0.03616855]
[1755341750810,6.96894432,186.45,186.44,2.92616855]
[1755341751205,4.01894432,186.45,186.44,2.92616855]
[1755341751809,6.96894432,186.45,186.44,2.92616855]
[1755341753307,6.96894432,186.45,186.44,0.03616855]
[1755341754612,11.48212675,186.45,186.44,2.92616855]
[1755341754812,11.48212675,186.45,186.44,0.03616855]
[1755341755208,6.96894432,186.45,186.44,0.03616855]
[1755341755415,11.480842,186.45,186.44,0.03616855]
[1755341761613,6.96894432,186.45,186.44,0.03616855]
[1755341762818,6.96894432,186.45,186.37,0.3]
[1755341762819,8.42066181,186.45,186.39,2.89]
[1755341763016,2.95,186.43,186.39,2.89]
[1755341763311,4.01894432,186.42,186.39,2.89]
[1755341763513,2.95,186.43,186.39,2.89]
[1755341763718,4.02292525,186.42,186.39,2.89]
[1755341763919,2.95,186.43,186.39,2.89]
[1755341764117,4.02288111,186.42,186.39,2.89799364]
[1755341764321,4.5064743,186.48,186.4,2.89]
[1755341764514,4.02347235,186.47,186.42,8.25849364]
[1755341764716,4.02347235,186.46,186.43,2.89]
[1755341764915,136.0864743,186.5,186.43,2.89]
[1755341765117,6.97374646,186.49,186.43,2.89]
[1755341765312,4.02374646,186.48,186.43,2.89]
[1755341765519,4.02374646,186.47,186.43,2.89]
[1755341765721,4.02374646,186.46,186.45,5.78799364]
[1755341766326,4.5064743,186.51,186.46,2.89]
[1755341766521,4.02313392,186.5,186.46,2.89]
[1755341766723,6.97313392,186.49,186.46,2.89]
[1755341766923,2.95,186.47,186.44,0.03875861]
[1755341767223,4.02313392,186.46,186.44,0.03875861]
[1755341767517,2.95,186.49,186.45,2.89]
[1755341767724,2.95,186.47,186.45,2.89]
[1755341767917,6.97067136,186.46,186.45,2.89]
[1755341768917,2.95,186.45,186.44,2.92728411]
[1755341769121,6.97067136,186.45,186.44,2.92728411]
[1755341770427,4.02067136,186.45,186.44,0.03728411]
[1755341770629,6.97067136,186.45,186.44,0.03728411]
[1755341771722,11.47714566,186.45,186.44,0.03728411]
[1755341772125,11.47714566,186.45,186.39,2.89]
[1755341772324,2.95,186.43,186.39,2.89]
[1755341772526,8.52714566,186.44,186.38,2.89]
[1755341772527,2.95,186.41,186.38,2.89]
[1755341772734,2.95,186.39,186.37,3.19]
[1755341772925,4.02067136,186.38,186.21,0.93382708]
[1755341773232,2.95,186.34,186.23,2.89]
[1755341773433,2.95,186.32,186.23,2.89]
[1755341773631,2.95,186.3,186.23,2.89]
[1755341774124,0.03646738,186.31,186.23,2.89]
[1755341774334,2.95,186.3,186.23,2.89]
[1755341774631,2.98646738,186.31,186.23,2.89]
[1755341775134,2.95,186.29,186.23,2.89]
[1755341775533,2.98646738,186.31,186.23,2.89]
[1755341776431,2.98646738,186.31,186.23,11.15379364]
[1755341776735,2.98646738,186.31,186.24,2.89]
[1755341778536,0.03646738,186.31,186.27,2.95]
[1755341778938,3.05,186.33,186.27,2.95]
[1755341779336,3.05,186.3,186.27,2.95]
[1755341779633,0.03431726,186.31,186.27,2.95]
[1755341779837,3.08431726,186.31,186.27,2.95]
[1755341780543,3.05,186.3,186.27,2.95]
[1755341780842,0.03431726,186.31,186.27,2.95]
[1755341781040,3.08431726,186.31,186.27,2.95]
[1755341782342,0.03431726,186.31,186.27,2.95]
[1755341782538,0.03431726,186.31,186.17,0.93427835]
[1755341782539,0.03431726,186.31,186.3,2.95]
[1755341783041,3.05,186.31,186.26,2.89799364]
[1755341783242,3.05,186.3,186.29,2.95]
[1755341783639,0.0370932,186.32,186.29,2.95]
[1755341783836,3.05,186.31,186.29,2.95]
[1755341784241,3.05,186.31,186.3,2.95]
[1755341785836,3.0870932,186.32,186.3,2.95]